[Event "*** Titled Tuesday Blitz"]
[Site "Chess.com"]
[Date "2020.10.27"]
[Round "5"]
[White "Blitzstream"]
[Black "venus02"]
[Result "1/2-1/2"]
[WhiteElo "2714"]
[BlackElo "2512"]
[TimeControl "180+1"]
[EndTime "10:55:50 PDT"]
[Termination "Game drawn - insufficient material"]

1. e4 {[%clk 0:03:00.9]} 1... c5 {[%clk 0:02:58.8]} 2. Nf3 {[%clk 0:02:58]} 2...
d6 {[%clk 0:02:58.7]} 3. d4 {[%clk 0:02:57.4]} 3... cxd4 {[%clk 0:02:59.2]} 4.
Nxd4 {[%clk 0:02:58.3]} 4... Nf6 {[%clk 0:02:59.3]} 5. Nc3 {[%clk 0:02:54.1]}
5... a6 {[%clk 0:02:59.3]} 6. Rg1 {[%clk 0:02:53.8]} 6... h5 {[%clk 0:02:46]} 7.
h3 {[%clk 0:02:53.8]} 7... e6 {[%clk 0:02:32]} 8. g4 {[%clk 0:02:53]} 8... hxg4
{[%clk 0:02:32.2]} 9. hxg4 {[%clk 0:02:53.9]} 9... d5 {[%clk 0:02:32.4]} 10. Bg2
{[%clk 0:02:43.5]} 10... dxe4 {[%clk 0:02:27.5]} 11. Nxe4 {[%clk 0:02:43]} 11...
Nxe4 {[%clk 0:02:26.1]} 12. Bxe4 {[%clk 0:02:43.9]} 12... Qc7 {[%clk 0:02:24.8]}
13. Be3 {[%clk 0:02:34.7]} 13... Bd7 {[%clk 0:02:22]} 14. Qd2 {[%clk 0:02:34]}
14... Nc6 {[%clk 0:02:16.3]} 15. O-O-O {[%clk 0:02:33.6]} 15... Be7 {[%clk
0:02:12.8]} 16. Nxc6 {[%clk 0:02:14.9]} 16... Bxc6 {[%clk 0:02:11.5]} 17. Qc3
{[%clk 0:02:14.4]} 17... Bf6 {[%clk 0:01:55.9]} 18. Bxc6+ {[%clk 0:02:13.5]}
18... Qxc6 {[%clk 0:01:48.2]} 19. Qxc6+ {[%clk 0:02:12.7]} 19... bxc6 {[%clk
0:01:48.5]} 20. Rd6 {[%clk 0:01:58.5]} 20... Rc8 {[%clk 0:01:46.7]} 21. Rgd1
{[%clk 0:01:58.7]} 21... Rh4 {[%clk 0:01:31.5]} 22. g5 {[%clk 0:01:53.2]} 22...
Be7 {[%clk 0:01:31.2]} 23. Rd7 {[%clk 0:01:52.3]} 23... Rg4 {[%clk 0:01:18.4]}
24. f4 {[%clk 0:01:30.2]} 24... Rg3 {[%clk 0:01:17.4]} 25. R7d3 {[%clk 0:01:30]}
25... Rd8 {[%clk 0:01:10.5]} 26. Bd4 {[%clk 0:01:20]} 26... Rxd3 {[%clk
0:01:08.8]} 27. Rxd3 {[%clk 0:01:20.5]} 27... g6 {[%clk 0:00:55.6]} 28. Kd2
{[%clk 0:01:14.6]} 28... c5 {[%clk 0:00:54.4]} 29. Be5 {[%clk 0:01:13.7]} 29...
Rxd3+ {[%clk 0:00:54]} 30. Kxd3 {[%clk 0:01:14.6]} 30... Kd7 {[%clk 0:00:54.2]}
31. Kc4 {[%clk 0:01:12.4]} 31... Kc6 {[%clk 0:00:54.3]} 32. c3 {[%clk
0:01:10.6]} 32... Bf8 {[%clk 0:00:52.5]} 33. b4 {[%clk 0:01:08.8]} 33... cxb4
{[%clk 0:00:47.5]} 34. cxb4 {[%clk 0:01:09.7]} 34... Be7 {[%clk 0:00:47.3]} 35.
a4 {[%clk 0:01:09.3]} 35... Bf8 {[%clk 0:00:47.3]} 36. Bd4 {[%clk 0:01:07.4]}
36... Bd6 {[%clk 0:00:46.5]} 37. Be5 {[%clk 0:01:06.4]} 37... Be7 {[%clk
0:00:45.1]} 38. b5+ {[%clk 0:01:03.4]} 38... axb5+ {[%clk 0:00:44.9]} 39. axb5+
{[%clk 0:01:02.9]} 39... Kb6 {[%clk 0:00:45]} 40. Bd4+ {[%clk 0:01:02.7]} 40...
Ka5 {[%clk 0:00:43]} 41. b6 {[%clk 0:00:29.8]} 41... Ka6 {[%clk 0:00:42.3]} 42.
Bc5 {[%clk 0:00:28.8]} 42... Bd8 {[%clk 0:00:41.9]} 43. Kd4 {[%clk 0:00:29.2]}
43... f6 {[%clk 0:00:41.7]} 44. gxf6 {[%clk 0:00:26.7]} 44... Bxf6+ {[%clk
0:00:41.6]} 45. Ke4 {[%clk 0:00:27.1]} 45... g5 {[%clk 0:00:40.9]} 46. fxg5
{[%clk 0:00:24.9]} 46... Bxg5 {[%clk 0:00:41]} 47. Ke5 {[%clk 0:00:25.5]} 47...
Kb7 {[%clk 0:00:40.5]} 48. Kxe6 {[%clk 0:00:25.7]} 48... Bd8 {[%clk 0:00:41]}
49. Kd5 {[%clk 0:00:26.6]} 49... Bxb6 {[%clk 0:00:41.4]} 1/2-1/2

[Event "*** Titled Tuesday Blitz"]
[Site "Chess.com"]
[Date "2020.10.27"]
[Round "5"]
[White "HrvojeZagreb"]
[Black "SanchezKelvin"]
[Result "0-1"]
[WhiteElo "2229"]
[BlackElo "2398"]
[TimeControl "180+1"]
[EndTime "10:55:50 PDT"]
[Termination "SanchezKelvin won by resignation"]

1. d4 {[%clk 0:03:00.9]} 1... Nf6 {[%clk 0:02:57.2]} 2. Bf4 {[%clk 0:03:00.4]}
2... d5 {[%clk 0:02:56.4]} 3. e3 {[%clk 0:03:00.4]} 3... c5 {[%clk 0:02:56.1]}
4. Nc3 {[%clk 0:03:00]} 4... cxd4 {[%clk 0:02:52.2]} 5. exd4 {[%clk 0:02:59.6]}
5... a6 {[%clk 0:02:37.6]} 6. Bd3 {[%clk 0:02:58.5]} 6... Nc6 {[%clk 0:02:37.1]}
7. Nce2 {[%clk 0:02:58.2]} 7... Nh5 {[%clk 0:02:33.5]} 8. Be3 {[%clk 0:02:53.4]}
8... g6 {[%clk 0:02:32.8]} 9. c3 {[%clk 0:02:52.2]} 9... Bg7 {[%clk 0:02:32.6]}
10. h3 {[%clk 0:02:49.6]} 10... O-O {[%clk 0:02:30.8]} 11. Nf3 {[%clk
0:02:48.6]} 11... Qb6 {[%clk 0:02:22.9]} 12. Qd2 {[%clk 0:02:47.9]} 12... Re8
{[%clk 0:02:21.3]} 13. O-O {[%clk 0:02:35]} 13... Nf6 {[%clk 0:02:12.2]} 14. Ne5
{[%clk 0:02:19.2]} 14... Ne4 {[%clk 0:02:07.7]} 15. Bxe4 {[%clk 0:02:15.3]}
15... dxe4 {[%clk 0:01:54]} 16. d5 {[%clk 0:02:13.8]} 16... Qc7 {[%clk
0:01:45.2]} 17. Nxc6 {[%clk 0:01:57.3]} 17... bxc6 {[%clk 0:01:40.7]} 18. dxc6
{[%clk 0:01:52.1]} 18... Qxc6 {[%clk 0:01:39.8]} 19. Bd4 {[%clk 0:01:50.3]}
19... e5 {[%clk 0:01:38.9]} 20. Be3 {[%clk 0:01:48.1]} 20... Be6 {[%clk
0:01:37.9]} 21. Rfd1 {[%clk 0:01:45.9]} 21... f5 {[%clk 0:01:29.7]} 22. Bg5
{[%clk 0:01:40.4]} 22... f4 {[%clk 0:01:24.6]} 23. Nxf4 {[%clk 0:00:52.7]} 23...
exf4 {[%clk 0:01:22.5]} 24. Bxf4 {[%clk 0:00:53.6]} 24... Bf7 {[%clk 0:01:21.8]}
25. Qd6 {[%clk 0:00:49.7]} 25... Qb5 {[%clk 0:01:11.2]} 26. Rd2 {[%clk
0:00:43.9]} 26... g5 {[%clk 0:00:42.2]} 27. Bg3 {[%clk 0:00:39.8]} 27... Qf5
{[%clk 0:00:38.4]} 28. a4 {[%clk 0:00:31.3]} 28... Bf6 {[%clk 0:00:32.5]} 29.
Qb4 {[%clk 0:00:17.2]} 29... e3 {[%clk 0:00:27.7]} 30. fxe3 {[%clk 0:00:15.8]}
30... Rxe3 {[%clk 0:00:26.1]} 31. Kh2 {[%clk 0:00:15.4]} 31... Rxg3 {[%clk
0:00:24.8]} 32. Rad1 {[%clk 0:00:07.1]} 32... Qe5 {[%clk 0:00:20.5]} 33. Kh1
{[%clk 0:00:06.2]} 33... Re3 {[%clk 0:00:20.2]} 34. Rf2 {[%clk 0:00:05.8]} 34...
Re1+ {[%clk 0:00:20.1]} 35. Rxe1 {[%clk 0:00:06.1]} 35... Qxe1+ {[%clk
0:00:20.8]} 36. Kh2 {[%clk 0:00:06.8]} 36... Be5+ {[%clk 0:00:20.6]} 0-1

[Event "*** Titled Tuesday Blitz"]
[Site "Chess.com"]
[Date "2020.10.27"]
[Round "5"]
[White "Bigfish1995"]
[Black "nrvisakh"]
[Result "1-0"]
[WhiteElo "3019"]
[BlackElo "2688"]
[TimeControl "180+1"]
[EndTime "10:55:51 PDT"]
[Termination "Bigfish1995 won by resignation"]

1. e4 {[%clk 0:03:00.9]} 1... c5 {[%clk 0:02:57.1]} 2. b4 {[%clk 0:03:01.2]}
2... cxb4 {[%clk 0:02:55.7]} 3. a3 {[%clk 0:03:01]} 3... d5 {[%clk 0:02:48]} 4.
exd5 {[%clk 0:02:41.6]} 4... Qxd5 {[%clk 0:02:48.9]} 5. Bb2 {[%clk 0:02:41.8]}
5... Nc6 {[%clk 0:02:29]} 6. axb4 {[%clk 0:02:41.2]} 6... Nxb4 {[%clk
0:02:28.8]} 7. Nc3 {[%clk 0:02:40.9]} 7... Qd8 {[%clk 0:02:27.8]} 8. Nf3 {[%clk
0:02:34.1]} 8... Nf6 {[%clk 0:02:27.1]} 9. Ne5 {[%clk 0:02:32.9]} 9... Nc6
{[%clk 0:02:22.9]} 10. Nxc6 {[%clk 0:02:26.5]} 10... bxc6 {[%clk 0:02:22.6]} 11.
Bc4 {[%clk 0:02:11.4]} 11... e6 {[%clk 0:02:21.3]} 12. Qf3 {[%clk 0:02:10.5]}
12... Bd7 {[%clk 0:02:17.3]} 13. Ne4 {[%clk 0:02:06.2]} 13... Be7 {[%clk
0:02:15]} 14. O-O {[%clk 0:01:51.8]} 14... O-O {[%clk 0:02:08.1]} 15. Qg3 {[%clk
0:01:45.4]} 15... Nh5 {[%clk 0:01:37.4]} 16. Qe5 {[%clk 0:01:15.7]} 16... Bf6
{[%clk 0:01:35.4]} 17. Nxf6+ {[%clk 0:01:02.7]} 17... Qxf6 {[%clk 0:01:34.8]}
18. Ra5 {[%clk 0:00:55.5]} 18... Rfb8 {[%clk 0:01:25]} 19. Qxb8+ {[%clk
0:00:54.4]} 19... Rxb8 {[%clk 0:01:24.6]} 20. Bxf6 {[%clk 0:00:55.3]} 20... Nxf6
{[%clk 0:01:24.9]} 21. Rxa7 {[%clk 0:00:55.2]} 21... Kf8 {[%clk 0:01:25]} 22.
Raa1 {[%clk 0:00:52]} 22... Rb4 {[%clk 0:01:19.4]} 23. d3 {[%clk 0:00:50.7]}
23... Ke7 {[%clk 0:01:16.5]} 24. Rfb1 {[%clk 0:00:50.7]} 24... Rxb1+ {[%clk
0:01:16.5]} 25. Rxb1 {[%clk 0:00:51.6]} 25... Kd6 {[%clk 0:01:14.8]} 26. f3
{[%clk 0:00:50.5]} 26... Nd5 {[%clk 0:01:14.8]} 27. Kf2 {[%clk 0:00:50.9]} 27...
e5 {[%clk 0:01:14.8]} 28. Bxd5 {[%clk 0:00:47.4]} 28... Kxd5 {[%clk 0:01:11]}
29. Ke3 {[%clk 0:00:46.9]} 29... Be6 {[%clk 0:01:11.1]} 30. g4 {[%clk
0:00:44.1]} 30... h6 {[%clk 0:01:05.3]} 31. Rb8 {[%clk 0:00:43.3]} 31... f5
{[%clk 0:00:59.5]} 32. gxf5 {[%clk 0:00:41.1]} 32... Bxf5 {[%clk 0:01:00.4]} 33.
Rg8 {[%clk 0:00:39.9]} 33... g6 {[%clk 0:00:59.6]} 34. Rh8 {[%clk 0:00:37.8]}
34... h5 {[%clk 0:00:59.6]} 35. h4 {[%clk 0:00:38.4]} 35... c5 {[%clk
0:00:58.1]} 36. Rd8+ {[%clk 0:00:35.5]} 36... Kc6 {[%clk 0:00:57.9]} 37. f4
{[%clk 0:00:34.7]} 37... exf4+ {[%clk 0:00:54.9]} 38. Kxf4 {[%clk 0:00:35]}
38... Kb5 {[%clk 0:00:53.1]} 39. Rd5 {[%clk 0:00:33.7]} 39... Kb4 {[%clk
0:00:52]} 40. Ke5 {[%clk 0:00:18.6]} 40... Bg4 {[%clk 0:00:47.4]} 41. Kd6 {[%clk
0:00:18.6]} 41... c4 {[%clk 0:00:44.3]} 42. dxc4 {[%clk 0:00:18.8]} 42... Kxc4
{[%clk 0:00:44.4]} 43. Rg5 {[%clk 0:00:19.4]} 43... Bf5 {[%clk 0:00:43.6]} 44.
Rxf5 {[%clk 0:00:17.4]} 44... gxf5 {[%clk 0:00:43.4]} 45. Ke5 {[%clk 0:00:18.3]}
45... Kc3 {[%clk 0:00:43.6]} 46. Kxf5 {[%clk 0:00:18.8]} 46... Kxc2 {[%clk
0:00:44.5]} 47. Kg5 {[%clk 0:00:19.5]} 1-0

[Event "*** Titled Tuesday Blitz"]
[Site "Chess.com"]
[Date "2020.10.27"]
[Round "5"]
[White "Onischuk_V"]
[Black "BilodeauA"]
[Result "1/2-1/2"]
[WhiteElo "2798"]
[BlackElo "2906"]
[TimeControl "180+1"]
[EndTime "10:55:52 PDT"]
[Termination "Game drawn by agreement"]

1. e4 {[%clk 0:03:00.4]} 1... e5 {[%clk 0:02:58.8]} 2. Nf3 {[%clk 0:03:00.3]}
2... Nc6 {[%clk 0:02:53.5]} 3. Bc4 {[%clk 0:03:00.8]} 3... Bc5 {[%clk
0:02:52.4]} 4. d3 {[%clk 0:03:00.7]} 4... Nf6 {[%clk 0:02:51.2]} 5. Nbd2 {[%clk
0:03:00.9]} 5... d6 {[%clk 0:02:50.1]} 6. c3 {[%clk 0:03:00.8]} 6... O-O {[%clk
0:02:48]} 7. Bb3 {[%clk 0:03:00.4]} 7... a6 {[%clk 0:02:14.6]} 8. O-O {[%clk
0:02:59.4]} 8... Be6 {[%clk 0:02:11.2]} 9. Bc2 {[%clk 0:02:58.1]} 9... h6 {[%clk
0:02:09.6]} 10. h3 {[%clk 0:02:56.7]} 10... d5 {[%clk 0:02:06.3]} 11. exd5
{[%clk 0:02:55.2]} 11... Bxd5 {[%clk 0:02:06.7]} 12. Re1 {[%clk 0:02:51.9]}
12... Re8 {[%clk 0:02:06.6]} 13. Ne4 {[%clk 0:02:51.9]} 13... Nxe4 {[%clk
0:01:56.7]} 14. dxe4 {[%clk 0:02:51.4]} 14... Bc4 {[%clk 0:01:57.3]} 15. Bd2
{[%clk 0:02:51.7]} 15... Qf6 {[%clk 0:01:53.3]} 16. b3 {[%clk 0:02:47.9]} 16...
Be6 {[%clk 0:01:51.1]} 17. b4 {[%clk 0:02:43.5]} 17... Bf8 {[%clk 0:01:45.6]}
18. Qe2 {[%clk 0:02:43]} 18... Ne7 {[%clk 0:01:40.5]} 19. Nh2 {[%clk 0:02:19.6]}
19... Ng6 {[%clk 0:01:35.6]} 20. Ng4 {[%clk 0:02:19.4]} 20... Qh4 {[%clk
0:01:30.4]} 21. Qf3 {[%clk 0:02:15.6]} 21... Rad8 {[%clk 0:01:22.1]} 22. Red1
{[%clk 0:02:12.2]} 22... Be7 {[%clk 0:00:45.8]} 23. Ne3 {[%clk 0:01:52.4]} 23...
Nf4 {[%clk 0:00:46.3]} 24. Nf5 {[%clk 0:01:48.7]} 24... Bxf5 {[%clk 0:00:43.7]}
25. exf5 {[%clk 0:01:48.8]} 25... Bg5 {[%clk 0:00:40.5]} 26. Be3 {[%clk
0:01:42.1]} 26... Rxd1+ {[%clk 0:00:31.8]} 27. Rxd1 {[%clk 0:01:40.9]} 27... e4
{[%clk 0:00:32.5]} 28. Qg4 {[%clk 0:01:09.6]} 28... Qxg4 {[%clk 0:00:32.9]} 29.
hxg4 {[%clk 0:01:09.2]} 29... Ne2+ {[%clk 0:00:33.7]} 30. Kf1 {[%clk 0:01:09.4]}
30... Nxc3 {[%clk 0:00:34.3]} 31. Rd7 {[%clk 0:01:07.1]} 31... Re7 {[%clk
0:00:15.2]} 32. Rxe7 {[%clk 0:00:37.3]} 32... Bxe7 {[%clk 0:00:16.1]} 33. a3
{[%clk 0:00:35.5]} 33... Bf6 {[%clk 0:00:14.8]} 34. Bd2 {[%clk 0:00:35.1]} 34...
c6 {[%clk 0:00:11.6]} 35. Bxc3 {[%clk 0:00:33.2]} 35... Bxc3 {[%clk 0:00:12.5]}
36. Bxe4 {[%clk 0:00:33.6]} 36... Bb2 {[%clk 0:00:13.1]} 37. a4 {[%clk
0:00:33.6]} 37... Bc3 {[%clk 0:00:13.4]} 38. b5 {[%clk 0:00:33.7]} 38... cxb5
{[%clk 0:00:12.6]} 39. axb5 {[%clk 0:00:33.6]} 39... axb5 {[%clk 0:00:13]} 40.
Bxb7 {[%clk 0:00:33.8]} 40... Kf8 {[%clk 0:00:13.6]} 41. Bd5 {[%clk 0:00:34.3]}
41... b4 {[%clk 0:00:13.7]} 42. Ke2 {[%clk 0:00:33.6]} 42... Ke7 {[%clk
0:00:14.2]} 43. Kd3 {[%clk 0:00:32.9]} 43... Be1 {[%clk 0:00:13.5]} 1/2-1/2

[Event "*** Titled Tuesday Blitz"]
[Site "Chess.com"]
[Date "2020.10.27"]
[Round "5"]
[White "Euge_chess"]
[Black "MathiasWomacka"]
[Result "0-1"]
[WhiteElo "2091"]
[BlackElo "2509"]
[TimeControl "180+1"]
[EndTime "10:55:52 PDT"]
[Termination "MathiasWomacka won on time"]

1. e4 {[%clk 0:03:00.9]} 1... c5 {[%clk 0:02:59.1]} 2. c3 {[%clk 0:03:00]} 2...
d5 {[%clk 0:02:58.4]} 3. exd5 {[%clk 0:02:59.6]} 3... Qxd5 {[%clk 0:02:59.3]} 4.
d4 {[%clk 0:02:59.8]} 4... Nf6 {[%clk 0:02:59.2]} 5. Nf3 {[%clk 0:02:59.3]} 5...
e6 {[%clk 0:02:59.4]} 6. Be3 {[%clk 0:02:56.8]} 6... Nbd7 {[%clk 0:02:56.3]} 7.
Be2 {[%clk 0:02:53.9]} 7... b6 {[%clk 0:02:51.1]} 8. O-O {[%clk 0:02:47]} 8...
Bb7 {[%clk 0:02:51.1]} 9. dxc5 {[%clk 0:02:45.8]} 9... Nxc5 {[%clk 0:02:46.6]}
10. Bb5+ {[%clk 0:02:41.5]} 10... Ncd7 {[%clk 0:02:38.4]} 11. c4 {[%clk
0:02:40.3]} 11... Qxd1 {[%clk 0:02:28.1]} 12. Rxd1 {[%clk 0:02:39.8]} 12... a6
{[%clk 0:02:27.8]} 13. Ba4 {[%clk 0:02:36.8]} 13... O-O-O {[%clk 0:02:24.9]} 14.
Nc3 {[%clk 0:02:30.4]} 14... Bc5 {[%clk 0:02:19.8]} 15. Bg5 {[%clk 0:02:16.1]}
15... h6 {[%clk 0:02:15]} 16. Bf4 {[%clk 0:01:59.6]} 16... g5 {[%clk 0:02:09.6]}
17. Bg3 {[%clk 0:01:51.6]} 17... Nh5 {[%clk 0:02:06.9]} 18. Bd6 {[%clk 0:01:45]}
18... Bxd6 {[%clk 0:01:51.7]} 19. Rxd6 {[%clk 0:01:44]} 19... Kc7 {[%clk
0:01:50.3]} 20. Rad1 {[%clk 0:01:40.2]} 20... Nc5 {[%clk 0:01:50.1]} 21. Rxd8
{[%clk 0:01:29]} 21... Rxd8 {[%clk 0:01:51]} 22. Rxd8 {[%clk 0:01:29.2]} 22...
Kxd8 {[%clk 0:01:51.9]} 23. Bc2 {[%clk 0:01:29.5]} 23... Nf4 {[%clk 0:01:49.2]}
24. Ne5 {[%clk 0:01:27.2]} 24... f6 {[%clk 0:01:38]} 25. Nf7+ {[%clk 0:01:23.2]}
25... Ke7 {[%clk 0:01:36.8]} 26. Nxh6 {[%clk 0:01:22.6]} 26... Bxg2 {[%clk
0:01:30.8]} 27. b4 {[%clk 0:01:15.1]} 27... Nd7 {[%clk 0:01:28.4]} 28. Ne2
{[%clk 0:01:09.8]} 28... Nxe2+ {[%clk 0:01:20.4]} 29. Kxg2 {[%clk 0:01:08.3]}
29... f5 {[%clk 0:01:20.4]} 30. a4 {[%clk 0:00:45.5]} 30... Kf8 {[%clk
0:01:19.3]} 31. Nxf5 {[%clk 0:00:41]} 31... exf5 {[%clk 0:01:18.5]} 32. Bxf5
{[%clk 0:00:40.8]} 32... Ke7 {[%clk 0:01:13.6]} 33. Kf1 {[%clk 0:00:28.8]} 33...
Nd4 {[%clk 0:01:08.4]} 34. Bd3 {[%clk 0:00:25.8]} 34... Ne5 {[%clk 0:01:07.6]}
35. Be4 {[%clk 0:00:17.5]} 35... Nxc4 {[%clk 0:01:06]} 36. Bb7 {[%clk
0:00:16.1]} 36... a5 {[%clk 0:01:04.2]} 37. bxa5 {[%clk 0:00:14.9]} 37... bxa5
{[%clk 0:01:04.3]} 38. Ke1 {[%clk 0:00:14]} 38... Nb2 {[%clk 0:00:57.8]} 39. Kd2
{[%clk 0:00:11.2]} 39... Nxa4 {[%clk 0:00:57.6]} 40. Kd3 {[%clk 0:00:11]} 40...
Nc5+ {[%clk 0:00:56.5]} 41. Kxd4 {[%clk 0:00:10.8]} 41... Nxb7 {[%clk
0:00:56.8]} 42. h3 {[%clk 0:00:08]} 42... Kf6 {[%clk 0:00:56.6]} 43. Kc4 {[%clk
0:00:07.6]} 43... Kf5 {[%clk 0:00:56.4]} 44. Kb5 {[%clk 0:00:06.6]} 44... Kf4
{[%clk 0:00:56.2]} 0-1

[Event "*** Titled Tuesday Blitz"]
[Site "Chess.com"]
[Date "2020.10.27"]
[Round "5"]
[White "Fortitudine"]
[Black "Zhani-Z"]
[Result "0-1"]
[WhiteElo "2299"]
[BlackElo "2535"]
[TimeControl "180+1"]
[EndTime "10:55:53 PDT"]
[Termination "Zhani-Z won by resignation"]

1. c4 {[%clk 0:03:00.9]} 1... e5 {[%clk 0:02:56.7]} 2. g3 {[%clk 0:02:59.7]}
2... c6 {[%clk 0:02:53.4]} 3. d4 {[%clk 0:02:55.8]} 3... Bb4+ {[%clk 0:02:50.1]}
4. Bd2 {[%clk 0:02:48.9]} 4... Bxd2+ {[%clk 0:02:50]} 5. Qxd2 {[%clk 0:02:49.8]}
5... d6 {[%clk 0:02:50.8]} 6. dxe5 {[%clk 0:02:41.3]} 6... dxe5 {[%clk
0:02:51.7]} 7. Qxd8+ {[%clk 0:02:41.3]} 7... Kxd8 {[%clk 0:02:49.8]} 8. Nc3
{[%clk 0:02:39.5]} 8... Nf6 {[%clk 0:02:46.5]} 9. Bh3 {[%clk 0:02:34.3]} 9...
Bxh3 {[%clk 0:02:35.4]} 10. Nxh3 {[%clk 0:02:35.2]} 10... Nbd7 {[%clk
0:02:26.7]} 11. O-O-O {[%clk 0:02:27.7]} 11... Kc7 {[%clk 0:02:10.1]} 12. Ng5
{[%clk 0:02:23.5]} 12... Rhf8 {[%clk 0:02:07.7]} 13. Rd2 {[%clk 0:01:18.8]}
13... a5 {[%clk 0:02:02.9]} 14. Rhd1 {[%clk 0:01:17.6]} 14... Nc5 {[%clk
0:02:03]} 15. h3 {[%clk 0:00:59.7]} 15... h6 {[%clk 0:01:56.2]} 16. Nf3 {[%clk
0:00:58.3]} 16... e4 {[%clk 0:01:51.3]} 17. Nd4 {[%clk 0:00:40.7]} 17... e3
{[%clk 0:01:33.3]} 18. fxe3 {[%clk 0:00:39.7]} 18... Rfe8 {[%clk 0:01:30.5]} 19.
Nf5 {[%clk 0:00:30]} 19... g6 {[%clk 0:01:23]} 20. Nxh6 {[%clk 0:00:29.7]} 20...
Rxe3 {[%clk 0:01:21.3]} 21. Nxf7 {[%clk 0:00:20.2]} 21... a4 {[%clk 0:01:21.4]}
22. Kc2 {[%clk 0:00:15.5]} 22... Rxg3 {[%clk 0:01:19.2]} 23. Ne5 {[%clk
0:00:12.7]} 23... Re8 {[%clk 0:01:16.3]} 24. Ng4 {[%clk 0:00:12.9]} 24... Nxg4
{[%clk 0:01:14.9]} 25. hxg4 {[%clk 0:00:13.8]} 25... Rxg4 {[%clk 0:01:15.3]} 26.
Rd4 {[%clk 0:00:11.5]} 26... Rxd4 {[%clk 0:01:10.4]} 27. Rxd4 {[%clk 0:00:12.4]}
27... g5 {[%clk 0:01:10.2]} 28. Rg4 {[%clk 0:00:12.3]} 28... Rg8 {[%clk
0:01:09.3]} 29. b4 {[%clk 0:00:11.7]} 29... axb3+ {[%clk 0:01:08.8]} 30. axb3
{[%clk 0:00:12.6]} 30... Kd6 {[%clk 0:01:07.3]} 31. b4 {[%clk 0:00:12]} 31...
Ne6 {[%clk 0:01:07.9]} 32. e3 {[%clk 0:00:10.7]} 32... Ke5 {[%clk 0:01:08.1]}
33. Kd3 {[%clk 0:00:11]} 33... Kf5 {[%clk 0:01:08.1]} 34. Rg1 {[%clk 0:00:09]}
34... g4 {[%clk 0:01:08.5]} 35. Ke2 {[%clk 0:00:08.7]} 35... Ng5 {[%clk
0:01:05.5]} 36. Rf1+ {[%clk 0:00:08.8]} 36... Ke5 {[%clk 0:01:05.5]} 37. Rf4
{[%clk 0:00:05.6]} 37... Nh3 {[%clk 0:00:54.4]} 38. Re4+ {[%clk 0:00:05.2]}
38... Kf5 {[%clk 0:00:54.6]} 39. Rd4 {[%clk 0:00:04.2]} 39... g3 {[%clk
0:00:53.7]} 40. e4+ {[%clk 0:00:03.9]} 40... Ke5 {[%clk 0:00:52.8]} 41. Rd3
{[%clk 0:00:03.2]} 41... g2 {[%clk 0:00:52.5]} 42. Rxh3 {[%clk 0:00:02]} 42...
g1=Q {[%clk 0:00:52.9]} 43. Rh5+ {[%clk 0:00:01.4]} 0-1

[Event "*** Titled Tuesday Blitz"]
[Site "Chess.com"]
[Date "2020.10.27"]
[Round "5"]
[White "WPWPWP-2015"]
[Black "rasmussvane"]
[Result "0-1"]
[WhiteElo "2473"]
[BlackElo "2863"]
[TimeControl "180+1"]
[EndTime "10:55:57 PDT"]
[Termination "rasmussvane won by resignation"]

1. e4 {[%clk 0:03:00.9]} 1... c6 {[%clk 0:02:59.2]} 2. d4 {[%clk 0:02:59.2]}
2... d5 {[%clk 0:03:00.1]} 3. e5 {[%clk 0:02:58.9]} 3... Bf5 {[%clk 0:03:00.2]}
4. Be3 {[%clk 0:02:58.4]} 4... e6 {[%clk 0:03:00.3]} 5. Nd2 {[%clk 0:02:57.1]}
5... Qb6 {[%clk 0:02:59.5]} 6. Qc1 {[%clk 0:02:54.3]} 6... c5 {[%clk 0:02:58.4]}
7. Ngf3 {[%clk 0:02:49.8]} 7... Nc6 {[%clk 0:02:56.4]} 8. c3 {[%clk 0:02:39.2]}
8... Rc8 {[%clk 0:02:54.3]} 9. Nb3 {[%clk 0:02:33.5]} 9... c4 {[%clk 0:02:53.1]}
10. Nbd2 {[%clk 0:02:28.5]} 10... Nge7 {[%clk 0:02:53.1]} 11. Be2 {[%clk
0:02:27.7]} 11... Bg4 {[%clk 0:02:42.7]} 12. O-O {[%clk 0:02:26.2]} 12... Nf5
{[%clk 0:02:42.8]} 13. h3 {[%clk 0:02:22.3]} 13... Bxf3 {[%clk 0:02:40.7]} 14.
Nxf3 {[%clk 0:02:13.7]} 14... Be7 {[%clk 0:02:40.9]} 15. Bg5 {[%clk 0:02:03.6]}
15... Bxg5 {[%clk 0:02:36.4]} 16. Nxg5 {[%clk 0:02:03.2]} 16... O-O {[%clk
0:02:33.8]} 17. Rb1 {[%clk 0:01:58.8]} 17... h6 {[%clk 0:02:21.6]} 18. Nf3
{[%clk 0:01:57.8]} 18... f6 {[%clk 0:02:21.9]} 19. g4 {[%clk 0:01:53.6]} 19...
Nfe7 {[%clk 0:02:18.3]} 20. Qe3 {[%clk 0:01:52.5]} 20... Ng6 {[%clk 0:02:14.8]}
21. exf6 {[%clk 0:01:38.8]} 21... Rxf6 {[%clk 0:02:15.7]} 22. Kh2 {[%clk
0:01:26.2]} 22... Qc7+ {[%clk 0:02:14.7]} 23. Kh1 {[%clk 0:01:22.6]} 23... Rcf8
{[%clk 0:02:11.6]} 24. Rbe1 {[%clk 0:01:14.6]} 24... Nf4 {[%clk 0:01:46]} 25.
Ng1 {[%clk 0:01:09.5]} 25... Ne7 {[%clk 0:01:35.4]} 26. b3 {[%clk 0:01:06.9]}
26... b5 {[%clk 0:01:34.4]} 27. b4 {[%clk 0:01:00.1]} 27... Neg6 {[%clk
0:01:33.6]} 28. Qg3 {[%clk 0:00:45.9]} 28... Qf7 {[%clk 0:01:29.1]} 29. Bf3
{[%clk 0:00:38.6]} 29... Nd3 {[%clk 0:01:20.6]} 30. Re3 {[%clk 0:00:38.3]} 30...
Ngf4 {[%clk 0:01:20.6]} 31. Kh2 {[%clk 0:00:34.3]} 31... Nb2 {[%clk 0:01:02.5]}
32. Bh1 {[%clk 0:00:31.5]} 32... Nfd3 {[%clk 0:01:00.4]} 33. Nf3 {[%clk
0:00:24]} 33... Na4 {[%clk 0:00:57.8]} 34. Kg1 {[%clk 0:00:14.8]} 34... Nxc3
{[%clk 0:00:57]} 35. Ne5 {[%clk 0:00:14.6]} 35... Qe7 {[%clk 0:00:37.3]} 36.
Nxd3 {[%clk 0:00:12.7]} 36... cxd3 {[%clk 0:00:37.6]} 37. Kh2 {[%clk 0:00:11.7]}
37... Ne2 {[%clk 0:00:35.4]} 38. Qg2 {[%clk 0:00:10.5]} 38... Qd6+ {[%clk
0:00:31.1]} 39. Re5 {[%clk 0:00:09.9]} 39... Nxd4 {[%clk 0:00:29.3]} 40. f4
{[%clk 0:00:09.1]} 40... Rxf4 {[%clk 0:00:28.7]} 41. Rxf4 {[%clk 0:00:08.8]}
41... Rxf4 {[%clk 0:00:29.6]} 0-1